Cogmind - Beta 16 @@@ ROGUE MODE // 2025.11.19 @ 13:51:50 Player: Reflectatory Result: Destroyed by Alpha 7 with Enhanced Gamma Rifle Performance ------------- Evolutions (7) 3500 Regions Visited (12) 2400 Robots Destroyed (1) 5 Value Destroyed (1) 1 Prototype IDs (0) 0 Alien Tech Used (0) 0 Bonus (700) 700 TOTAL SCORE: 6606 Bonus ------- Pacifist 200 Scanned by Researcher 500 Cogmind --------- Core Integrity 0/1300 Matter 199/300 Energy 100/100 System Corruption 1% Temperature Cool (36) Movement Core (50) Location -3/Testing Parts ------- > --- POWER (1) -------- (None) > --- PROPULSION (2) --- (None) > --- UTILITY (16) ----- (None) > --- WEAPON (2) ------- (None) > --- INVENTORY (5) ---- (None) Peak State ------------ None Favorites ----------- Power None Propulsion None Utility None Weapon None Build | -11 -10 -10 -9 -9 -8 -8 -8 -6 -5 -4 -3 -3 ------- Run | Yrd Mat Min Mat Min Mat Sto Rec Fac Fac Fac Res Tes Slots Evolved 14 | . . . 2 . 2 . . 4 2 2 2 . Power . | . . . . . . . . . . . . . Propulsion . | . . . . . . . . . . . . . Utility 14 | . . . 2 . 2 . . 4 2 2 2 . Weapon . | . . . . . . . . . . . . . Parts Attached . | . . . . . . . . . . . . . Power . | . . . . . . . . . . . . . Engine . | . . . . . . . . . . . . . Core . | . . . . . . . . . . . . . Reactor . | . . . . . . . . . . . . . Propulsion . | . . . . . . . . . . . . . Treads . | . . . . . . . . . . . . . Leg . | . . . . . . . . . . . . . Wheel . | . . . . . . . . . . . . . Hover . | . . . . . . . . . . . . . Flight . | . . . . . . . . . . . . . Utility . | . . . . . . . . . . . . . Device . | . . . . . . . . . . . . . Storage . | . . . . . . . . . . . . . Processor . | . . . . . . . . . . . . . Hackware . | . . . . . . . . . . . . . Protection . | . . . . . . . . . . . . . Artifact . | . . . . . . . . . . . . . Weapon . | . . . . . . . . . . . . . Energy Gun . | . . . . . . . . . . . . . Energy Cannon . | . . . . . . . . . . . . . Ballistic Gun . | . . . . . . . . . . . . . Ballistic Cannon . | . . . . . . . . . . . . . Launcher . | . . . . . . . . . . . . . Special Weapon . | . . . . . . . . . . . . . Impact Weapon . | . . . . . . . . . . . . . Slashing Weapon . | . . . . . . . . . . . . . Piercing Weapon . | . . . . . . . . . . . . . Special Melee Weapon . | . . . . . . . . . . . . . Unidentified Prototypes . | . . . . . . . . . . . . . Parts Lost . | . . . . . . . . . . . . . Power . | . . . . . . . . . . . . . Propulsion . | . . . . . . . . . . . . . Utility . | . . . . . . . . . . . . . Weapon . | . . . . . . . . . . . . . Highest Loss Streak . | . . . . . . . . . . . . . To Critical Strikes . | . . . . . . . . . . . . . Average Backups . | . . . . . . . . . . . . . Power . | . . . . . . . . . . . . . Propulsion . | . . . . . . . . . . . . . Utility . | . . . . . . . . . . . . . Weapon . | . . . . . . . . . . . . . Tool/Special . | . . . . . . . . . . . . . Unused Backups . | . . . . . . . . . . . . . Power . | . . . . . . . . . . . . . Propulsion . | . . . . . . . . . . . . . Utility . | . . . . . . . . . . . . . Weapon . | . . . . . . . . . . . . . Tool/Special . | . . . . . . . . . . . . . Average Slot Usage (%) . | . . . . . . . . . . . . . Peak Build Rating . | . . . . . . . . . . . . . Average Rating . | . . . . . . . . . . . . . On Entrance . | . . . . . . . . . . . . . Avg Prop Armor Cover (%) . | . . . . . . . . . . . . . Naked Turns 847 | . 49 42 29 36 4 56 45 157 146 119 32 132 Heaviest Build . | . . . . . . . . . . . . . Greatest Support 3 | 3 3 3 3 3 3 3 3 3 3 3 3 3 Greatest Overweight (x) . | . . . . . . . . . . . . . Average Overweight (x) . | . . . . . . . . . . . . . Largest Inventory Capacity 5 | 5 5 5 5 5 5 5 5 5 5 5 5 5 Average Capacity 5 | 5 5 5 5 5 5 5 5 5 5 5 5 5 Most Carried . | . . . . . . . . . . . . . Average Carried . | . . . . . . . . . . . . . Final Capacity 5 | 5 5 5 5 5 5 5 5 5 5 5 5 5 Final Carried . | . . . . . . . . . . . . . Class Distribution -------------------- 100% | Mutant Dominant Class ---------------- Mutant | -10/Materials Mutant | -10/Mines Mutant | -9/Materials Mutant | -9/Mines Mutant | -8/Materials Mutant | -8/Storage Mutant | -8/Recycling Mutant | -6/Factory Mutant | -5/Factory Mutant | -4/Factory Mutant | -3/Research Mutant | -3/Testing Resources | -11 -10 -10 -9 -9 -8 -8 -8 -6 -5 -4 -3 -3 ----------- Run | Yrd Mat Min Mat Min Mat Sto Rec Fac Fac Fac Res Tes Matter Collected 67 | . . 44 23 . . . . . . . . . Remotely . | . . . . . . . . . . . . . Salvage Created 19 | . . . 19 . . . . . . . . . Parts 3 | . . . 3 . . . . . . . . . Haulers Intercepted . | . . . . . . . . . . . . . Recyclers Shooed . | . . . . . . . . . . . . . Parts Field Recycled . | . . . . . . . . . . . . . Retrieved Matter . | . . . . . . . . . . . . . Parts Self-Destructed . | . . . . . . . . . . . . . Prevented . | . . . . . . . . . . . . . Parts Restored . | . . . . . . . . . . . . . Kills | -11 -10 -10 -9 -9 -8 -8 -8 -6 -5 -4 -3 -3 ------- Run | Yrd Mat Min Mat Min Mat Sto Rec Fac Fac Fac Res Tes Combat Hostiles Destroyed . | . . . . . . . . . . . . . Classes Destroyed 1 | . . . 1 . . . . . . . . . Worker 1 | . . . 1 . . . . . . . . . Best Kill Streak 1 | . . . 1 . . . . . . . . . Combat Bots Only . | . . . . . . . . . . . . . Max Kills in Single Turn 1 | . . . 1 . . . . . . . . . Gunslinging . | . . . . . . . . . . . . . Exploded . | . . . . . . . . . . . . . Melee . | . . . . . . . . . . . . . Uniques/NPCs Destroyed . | . . . . . . . . . . . . . Combat | -11 -10 -10 -9 -9 -8 -8 -8 -6 -5 -4 -3 -3 -------- Run | Yrd Mat Min Mat Min Mat Sto Rec Fac Fac Fac Res Tes Hostile Shots Fired 227 | . . 1 13 . . 22 . . . 50 . 141 Missed 89 | . . 1 7 . . 6 . . . 26 . 49 Hits 138 | . . . 6 . . 16 . . . 24 . 92 Projectile 138 | . . . 6 . . 16 . . . 24 . 92 Critical Strikes 4 | . . . . . . 2 . . . . . 2 Damage Taken 2106 | . . . 60 4 . 254 . 66 . 419 . 1303 Core 2106 | . . . 60 4 . 254 . 66 . 419 . 1303 Absorbed by Shields . | . . . . . . . . . . . . . Core Remaining (%) 84 | 100 . 100 . 84 . . 53 92 100 63 . . Volleys Fired . | . . . . . . . . . . . . . Largest . | . . . . . . . . . . . . . Hottest . | . . . . . . . . . . . . . Shots Fired . | . . . . . . . . . . . . . Gun . | . . . . . . . . . . . . . Cannon . | . . . . . . . . . . . . . Launcher . | . . . . . . . . . . . . . Special . | . . . . . . . . . . . . . Kinetic . | . . . . . . . . . . . . . Thermal . | . . . . . . . . . . . . . Explosive . | . . . . . . . . . . . . . Electromagnetic . | . . . . . . . . . . . . . Robot Hit Streak . | . . . . . . . . . . . . . Robot Miss Streak . | . . . . . . . . . . . . . Penetration Max . | . . . . . . . . . . . . . Secondary Targets . | . . . . . . . . . . . . . Shots Hit Robots . | . . . . . . . . . . . . . Core Hits 2 | . . . 1 . . . . . . . . 1 Critical Kills . | . . . . . . . . . . . . . Critical Parts Destroyed . | . . . . . . . . . . . . . Critical Strikes . | . . . . . . . . . . . . . Melee Attacks . | . . . . . . . . . . . . . Impact . | . . . . . . . . . . . . . Slashing . | . . . . . . . . . . . . . Piercing . | . . . . . . . . . . . . . Sneak Attacks . | . . . . . . . . . . . . . Combat Hostiles . | . . . . . . . . . . . . . Follow-up Attacks . | . . . . . . . . . . . . . Damage Inflicted 50 | . . . 17 8 . . . . . . . 25 Guns . | . . . . . . . . . . . . . Cannons . | . . . . . . . . . . . . . Explosions . | . . . . . . . . . . . . . Melee . | . . . . . . . . . . . . . Ramming 50 | . . . 17 8 . . . . . . . 25 Kinetic . | . . . . . . . . . . . . . Thermal . | . . . . . . . . . . . . . Explosive . | . . . . . . . . . . . . . Electromagnetic . | . . . . . . . . . . . . . Impact . | . . . . . . . . . . . . . Slashing . | . . . . . . . . . . . . . Piercing . | . . . . . . . . . . . . . Highest Corruption 2 | . . . . 2 . . . . . . . 1 Average Corruption 1 | . . . . 2 . . . . . . . 1 Corruption Purged . | . . . . . . . . . . . . . Corruption Blocked . | . . . . . . . . . . . . . Overload Shots . | . . . . . . . . . . . . . Overflow Damage . | . . . . . . . . . . . . . Projectiles . | . . . . . . . . . . . . . Explosions . | . . . . . . . . . . . . . Melee . | . . . . . . . . . . . . . Knockbacks . | . . . . . . . . . . . . . Impact . | . . . . . . . . . . . . . Kinetic . | . . . . . . . . . . . . . Secondary . | . . . . . . . . . . . . . Self-Inflicted Damage 23 | . . . 8 4 . . . . . . . 11 Shots . | . . . . . . . . . . . . . Rammed 10 | . . . 1 1 . . . . . . . 8 Targets Rammed 10 | . . . 1 1 . . . . . . . 8 Kicked . | . . . . . . . . . . . . . Crushed . | . . . . . . . . . . . . . Highest Temperature 38 | . . . . . . . . . . . . 38 Average Temperature 16 | . . . . . . . . . . . . 16 Received Heat Transfer 669 | . . . . . . 153 . . . 18 . 498 Siege Activations . | . . . . . . . . . . . . . Martial Activations . | . . . . . . . . . . . . . Shielding Activations . | . . . . . . . . . . . . . Robots Disrupted . | . . . . . . . . . . . . . Combat Hostiles . | . . . . . . . . . . . . . Robots Corrupted . | . . . . . . . . . . . . . Combat Hostiles . | . . . . . . . . . . . . . Parts Fried . | . . . . . . . . . . . . . Impact Corruptions . | . . . . . . . . . . . . . Robots Melted . | . . . . . . . . . . . . . Combat Hostiles . | . . . . . . . . . . . . . Parts Melted . | . . . . . . . . . . . . . Heat Transferred . | . . . . . . . . . . . . . Parts Sabotaged . | . . . . . . . . . . . . . Parts Stolen . | . . . . . . . . . . . . . Parts Stripped . | . . . . . . . . . . . . . Power Chain Reactions . | . . . . . . . . . . . . . Alert | -11 -10 -10 -9 -9 -8 -8 -8 -6 -5 -4 -3 -3 ------- Run | Yrd Mat Min Mat Min Mat Sto Rec Fac Fac Fac Res Tes Maximum Alert Level . | . . . . . . . . . . . . . Low Security (%) 100 | 100 100 100 100 100 100 100 100 100 100 100 100 100 Level 1 . | . . . . . . . . . . . . . Level 2 . | . . . . . . . . . . . . . Level 3 . | . . . . . . . . . . . . . Level 4 . | . . . . . . . . . . . . . Level 5 . | . . . . . . . . . . . . . High Security . | . . . . . . . . . . . . . Max Security . | . . . . . . . . . . . . . Peak Influence 60 | . 15 15 41 15 1 45 17 . 15 45 18 60 Initial 18 | . . 5 1 15 1 . 17 . . 7 18 4 Average 8 | . 1 6 17 10 1 10 10 . . 10 13 23 Influence Increases 260 | . 15 15 50 . . 45 . . 15 45 . 75 Destroy 0b10 Robot/NC 5 | . . . 5 . . . . . . . . . Partial Spotted 30 | . . 15 . . . . . . . . . 15 Lose Combat Pursuer 225 | . 15 . 45 . . 45 . . 15 45 . 60 Influence Decreases 230 | . . 25 14 36 4 1 45 . . 25 27 53 Entered New Map 102 | . . 10 4 26 4 1 28 . . 8 17 4 Time Decay 128 | . . 15 10 10 . . 17 . . 17 10 49 Squads Dispatched 5 | . . . . . . 1 . . . 1 . 3 Investigation . | . . . . . . . . . . . . . Extermination . | . . . . . . . . . . . . . Reinforcement 5 | . . . . . . 1 . . . 1 . 3 Assault . | . . . . . . . . . . . . . Garrison . | . . . . . . . . . . . . . Intercept . | . . . . . . . . . . . . . Searches Triggered . | . . . . . . . . . . . . . Construction Impeded . | . . . . . . . . . . . . . Haulers Reinforced . | . . . . . . . . . . . . . Active Scanning Responses . | . . . . . . . . . . . . . Cargo Convoy Interrupts . | . . . . . . . . . . . . . Stealth | -11 -10 -10 -9 -9 -8 -8 -8 -6 -5 -4 -3 -3 --------- Run | Yrd Mat Min Mat Min Mat Sto Rec Fac Fac Fac Res Tes Distress Signals 2 | . . . 1 . . . . . 1 . . . Communications Jammed . | . . . . . . . . . . . . . Distress Signals . | . . . . . . . . . . . . . Times Spotted 39 | . 3 1 9 . . 4 . . 2 8 1 11 Peak Tracking Total 8 | . 3 2 8 . . 4 . . 3 6 1 8 Tactical Retreats 6 | . 1 . 1 . . 1 . . 1 1 . 1 Traps | -11 -10 -10 -9 -9 -8 -8 -8 -6 -5 -4 -3 -3 ------- Run | Yrd Mat Min Mat Min Mat Sto Rec Fac Fac Fac Res Tes Traps Triggered 4 | . . . . . . . . 2 1 . . 1 Indirectly . | . . . . . . . . . . . . . Trap Hack Attempts . | . . . . . . . . . . . . . Triggered . | . . . . . . . . . . . . . Disarmed . | . . . . . . . . . . . . . Reprogrammed . | . . . . . . . . . . . . . Reused . | . . . . . . . . . . . . . Traps Extracted . | . . . . . . . . . . . . . Installed . | . . . . . . . . . . . . . Triggered . | . . . . . . . . . . . . . Machines | -11 -10 -10 -9 -9 -8 -8 -8 -6 -5 -4 -3 -3 ---------- Run | Yrd Mat Min Mat Min Mat Sto Rec Fac Fac Fac Res Tes Machines Disabled . | . . . . . . . . . . . . . Max in Single Turn . | . . . . . . . . . . . . . Machines Repaired . | . . . . . . . . . . . . . Machines Dismantled . | . . . . . . . . . . . . . Machines Sabotaged . | . . . . . . . . . . . . . Overloaded Fab Kills . | . . . . . . . . . . . . . Hacking | -11 -10 -10 -9 -9 -8 -8 -8 -6 -5 -4 -3 -3 --------- Run | Yrd Mat Min Mat Min Mat Sto Rec Fac Fac Fac Res Tes Machines Accessed . | . . . . . . . . . . . . . Terminals . | . . . . . . . . . . . . . Fabricators . | . . . . . . . . . . . . . Repair Stations . | . . . . . . . . . . . . . Recycling Units . | . . . . . . . . . . . . . Scanalyzers . | . . . . . . . . . . . . . Garrison Access . | . . . . . . . . . . . . . Total Hacks . | . . . . . . . . . . . . . Successful . | . . . . . . . . . . . . . Failed . | . . . . . . . . . . . . . Catastrophic . | . . . . . . . . . . . . . Database Lockouts . | . . . . . . . . . . . . . Manual 1 | . . . . . . 1 . . . . . . Terminals . | . . . . . . . . . . . . . Fabricators . | . . . . . . . . . . . . . Repair Stations . | . . . . . . . . . . . . . Recycling Units . | . . . . . . . . . . . . . Scanalyzers . | . . . . . . . . . . . . . Garrison Access . | . . . . . . . . . . . . . Terminal Hacks . | . . . . . . . . . . . . . Fabricator Hacks . | . . . . . . . . . . . . . Repair Station Hacks . | . . . . . . . . . . . . . Recycling Unit Hacks . | . . . . . . . . . . . . . Scanalyzer . | . . . . . . . . . . . . . Garrison Access Hacks . | . . . . . . . . . . . . . Unauthorized Hacks . | . . . . . . . . . . . . . Terminals . | . . . . . . . . . . . . . Fabricators . | . . . . . . . . . . . . . Repair Stations . | . . . . . . . . . . . . . Recycling Units . | . . . . . . . . . . . . . Scanalyzers . | . . . . . . . . . . . . . Garrison Access . | . . . . . . . . . . . . . Data Cores Recovered . | . . . . . . . . . . . . . Used . | . . . . . . . . . . . . . Hacking Detections . | . . . . . . . . . . . . . Full Trace Events . | . . . . . . . . . . . . . Feedback Events . | . . . . . . . . . . . . . Feedback Blocked . | . . . . . . . . . . . . . Robot Schematics Acquired . | . . . . . . . . . . . . . Robots Built . | . . . . . . . . . . . . . Authchips . | . . . . . . . . . . . . . Time . | . . . . . . . . . . . . . Total Robot Build Rating . | . . . . . . . . . . . . . Part Schematics Acquired . | . . . . . . . . . . . . . Parts Built . | . . . . . . . . . . . . . Authchips . | . . . . . . . . . . . . . Time . | . . . . . . . . . . . . . Total Part Build Rating . | . . . . . . . . . . . . . Part Studies Acquired . | . . . . . . . . . . . . . Parts Repaired . | . . . . . . . . . . . . . Time . | . . . . . . . . . . . . . Parts Recycled . | . . . . . . . . . . . . . Recycled Matter . | . . . . . . . . . . . . . Retrieved Matter . | . . . . . . . . . . . . . Retrieved Components . | . . . . . . . . . . . . . Parts Scanalyzed . | . . . . . . . . . . . . . Part Schematics Acquired . | . . . . . . . . . . . . . Parts Damaged . | . . . . . . . . . . . . . Bothacking | -11 -10 -10 -9 -9 -8 -8 -8 -6 -5 -4 -3 -3 ------------ Run | Yrd Mat Min Mat Min Mat Sto Rec Fac Fac Fac Res Tes Used RIF Installer . | . . . . . . . . . . . . . Robots Hacked . | . . . . . . . . . . . . . Non-combat . | . . . . . . . . . . . . . Combat . | . . . . . . . . . . . . . Robot Hacks Applied . | . . . . . . . . . . . . . Relay Couplers Released . | . . . . . . . . . . . . . Fabnet Peak Effective % . | . . . . . . . . . . . . . Robots Rewired . | . . . . . . . . . . . . . Allies Hacked . | . . . . . . . . . . . . . Hacks Repelled . | . . . . . . . . . . . . . Allies | -11 -10 -10 -9 -9 -8 -8 -8 -6 -5 -4 -3 -3 -------- Run | Yrd Mat Min Mat Min Mat Sto Rec Fac Fac Fac Res Tes Total Allies . | . . . . . . . . . . . . . Largest Group . | . . . . . . . . . . . . . Highest-Rated Group . | . . . . . . . . . . . . . Highest-Rated Ally . | . . . . . . . . . . . . . Total Orders . | . . . . . . . . . . . . . Ally Attacks . | . . . . . . . . . . . . . Total Damage . | . . . . . . . . . . . . . Kills . | . . . . . . . . . . . . . Allies Corrupted . | . . . . . . . . . . . . . Allies Melted . | . . . . . . . . . . . . . Intel | -11 -10 -10 -9 -9 -8 -8 -8 -6 -5 -4 -3 -3 ------- Run | Yrd Mat Min Mat Min Mat Sto Rec Fac Fac Fac Res Tes Active Infowar (turns) . | . . . . . . . . . . . . . Robot Analysis Total . | . . . . . . . . . . . . . Derelict Logs Recovered 2 | . . 1 . 1 . . . . . . . . Drone Launches . | . . . . . . . . . . . . . Drone Recoveries . | . . . . . . . . . . . . . Exploration | -11 -10 -10 -9 -9 -8 -8 -8 -6 -5 -4 -3 -3 ------------- Run | Yrd Mat Min Mat Min Mat Sto Rec Fac Fac Fac Res Tes Turns Passed 856 | 9 49 42 29 36 4 56 45 157 146 119 32 132 Spaces Moved 1493 | 18 98 82 55 70 8 110 89 280 280 138 64 201 Core 1493 | 18 98 82 55 70 8 110 89 280 280 138 64 201 Treads . | . . . . . . . . . . . . . Legs . | . . . . . . . . . . . . . Wheels . | . . . . . . . . . . . . . Hover . | . . . . . . . . . . . . . Flight . | . . . . . . . . . . . . . Fastest Speed 50 | 50 50 50 50 50 50 50 50 50 50 50 50 50 Average Speed 50 | 50 50 50 50 50 50 50 50 50 50 50 50 50 Slowest Speed 50 | 50 50 50 50 50 50 50 50 50 50 50 50 50 Overloaded Moves . | . . . . . . . . . . . . . Propulsion Burnouts . | . . . . . . . . . . . . . Robots Hopped . | . . . . . . . . . . . . . Potential Cave-ins . | . . . . . . . . . . . . . Cave-ins Triggered . | . . . . . . . . . . . . . Exploration Rate (%) 16 | 4 26 18 11 25 2 28 28 13 14 6 3 35 Regions Visited 12 Branch Regions 5 Pre-discovered Areas 1 | . . . . 1 . . . . . . . . Known Exits Taken . | . . . . . . . . . . . . . Unknown Exits Taken 12 | 1 1 1 1 1 1 1 1 1 1 1 1 . Scrap Searched 1 | . . 1 . . . . . . . . . . Spaces Dug . | . . . . . . . . . . . . . Terrain Destroyed . | . . . . . . . . . . . . . Melee . | . . . . . . . . . . . . . Projectile . | . . . . . . . . . . . . . AOE . | . . . . . . . . . . . . . Terrain Rammed . | . . . . . . . . . . . . . Walls Destroyed . | . . . . . . . . . . . . . Machines Disabled . | . . . . . . . . . . . . . Actions | -11 -10 -10 -9 -9 -8 -8 -8 -6 -5 -4 -3 -3 --------- Run | Yrd Mat Min Mat Min Mat Sto Rec Fac Fac Fac Res Tes Total 1590 | 17 97 82 55 70 7 110 88 296 285 187 63 233 Wait 66 | . . 1 . . . 1 . 2 6 50 . 6 Move 1481 | 17 97 81 54 69 7 109 88 279 279 137 63 201 Hop . | . . . . . . . . . . . . . Pick Up . | . . . . . . . . . . . . . Fast Attach . | . . . . . . . . . . . . . Attach . | . . . . . . . . . . . . . Detach . | . . . . . . . . . . . . . Swap . | . . . . . . . . . . . . . Drop . | . . . . . . . . . . . . . Fire . | . . . . . . . . . . . . . Melee . | . . . . . . . . . . . . . Ram 10 | . . . 1 1 . . . . . . . 8 Kick . | . . . . . . . . . . . . . Crush . | . . . . . . . . . . . . . Escape Stasis 33 | . . . . . . . . 15 . . . 18 Rewire . | . . . . . . . . . . . . . Trap . | . . . . . . . . . . . . . Miscellaneous . | . . . . . . . . . . . . . Route ------- -11/Scrapyard -10/Materials -10/Mines -9/Materials -9/Mines -8/Materials -8/Storage -8/Recycling -6/Factory -5/Factory -4/Factory -3/Research -3/Testing History --------- Turn | Location | Event 4 | -11/Scrapyard | Discovered new exit (range 14) 10 | -11/Scrapyard | Entered Materials 11 | -10/Materials | Met a group of wandering Federalists 57 | -10/Materials | Discovered new exit (range 6) 59 | -10/Materials | Entered Mines 66 | -10/Mines | Learned Materials stockpile data 98 | -10/Mines | Discovered new exit (range 8) 101 | -10/Mines | Entered Materials 101 | -9/Materials | Evolved 2 slots: Utility x2 126 | -9/Materials | Discovered new exit (range 8) 130 | -9/Materials | Entered Mines 148 | -9/Mines | Learned location of Zion (-6) 162 | -9/Mines | Discovered new exit (range 9) 166 | -9/Mines | Received a Rocket Launcher from a helpful Derelict 166 | -9/Mines | Entered Materials 166 | -8/Materials | Evolved 2 slots: Utility x2 166 | -8/Materials | Discovered new exit (range 7) 170 | -8/Materials | Entered Storage 224 | -8/Storage | Used back door to open Recycling access 224 | -8/Storage | Discovered new exit (range 5) 226 | -8/Storage | Entered Recycling 267 | -8/Recycling | Discovered new exit (range 8) 271 | -8/Recycling | Entered Factory 271 | -6/Factory | Evolved 4 slots: Utility x4 305 | -6/Factory | Build established: Mutant 420 | -6/Factory | Discovered new exit (range 16) 428 | -6/Factory | Entered another Factory area 428 | -5/Factory | Evolved 2 slots: Utility x2 570 | -5/Factory | Discovered new exit (range 10) 574 | -5/Factory | Entered another Factory area 574 | -4/Factory | Evolved 2 slots: Utility x2 689 | -4/Factory | Discovered new exit (range 8) 693 | -4/Factory | Entered Research 693 | -3/Research | Evolved 2 slots: Utility x2 720 | -3/Research | Discovered new exit (range 12) 725 | -3/Research | Entered Testing 780 | -3/Testing | Spotted Alpha 7 824 | -3/Testing | Core integrity fell below 50% 854 | -3/Testing | Core integrity fell below 20% 854 | -3/Testing | Scanned by Researcher 857 | -3/Testing | Destroyed by Alpha 7 with Enhanced Gamma Rifle Last Messages --------------- ALERT: Hostiles spotted, dispatching reinforcements to Terminal T003. U-05 Engineer destroyed. K-01 Serf collects debris. R-10 Processor collects Lgt. Ion Engine. C-55 Analyst calibrates the Testing Mainframe. Slammed into X-77 Beamer. C-55 Analyst calls for reinforcements. ALERT: Hostile activity reported, dispatching reinforcements to area. Held in stasis. C-55 Analyst is analyzing... ALERT: Encountered unknown unique technology, formulating response. Slug penetrates Wall. Penetrated by Slug. Slug penetrates C-55 Analyst. Penetrated by Slug. Slug penetrates X-77 Beamer. Map ----- +----------------------------------------------------+ | ???????????????????????????????? [#?????????????? | | ???????????????????????????????"" #?????????????? | | ??????????????????????????????#"" !#?????????????? | | ??????????????????????????????#"" #?????????????? | | ??????????????????????????????#S ]#?????????????? | | ???????????????????????########"" #?????????????? | | ???????????????????????# #"" =#?????????????? | | ???????????????????????# """" #"" #?????????????? | | ???????????????????????# """" # !#?????????????? | | ???????????????????????# """" ##+###?????????????? | | ???????????????????????# """" / #???????????????? | | ??????????????########## # #???????????????? | | ????########### ###+#### #???????????????? | | ????? # + #???????????????? | | ????? # ### ##########????????????? | | ?????? ?# #?# # #????????????? | | ?????? ! ?# #?# # #????????????? | | ??????? ??# #?# # #????????????? | | ??????? ??# ??# # #????????????? | | ???????? ???# ????# # """ #????????????? | | ???????? ???# ?????# # " #????????????? | | ?########+######+######### # "" " #????????????? | | ?# # " """ #????????????? | | ?# #c """"" #????????????? | | ?# /x ""&"" #????????????? | | ?+ 7 @x# """""" #????????????? | | ?# #################+#### "" """ #????????????? | | ?# #?????????????? ?# "" " #????????????? | | ?# #????????????! # " " #????????????? | | ?# #??????????# # #????????????? | | # ####???????# """" # #????????????? | | # !! #???????# """" # #????????????? | | ?+ !%! #???????# """" # #????????????? | | ?# =| #???????# """" ##########????????????? | | ?# ####???????#???? #?????????????????????? | | ?# #???????????????######?????????????????????? | | ?# #??????????????????????????????????????????? | | ## #??????????????????????????????????????????? | | + #??????????????????????????????????????????? | | + #??????????????????????????????????????????? | | ## #??????????????????????????????????????????? | | ?# #??######??????????????????????????????????? | | ?# #? ???????????????????????????????????? | | ?# #? """ ??????????????????????????????????? | | ?# #! """ ??????????????????????????????????? | | ?# # """ #?????????????????????????????????? | | ?# + """ #?????????????????????????????????? | | ?# # """ #?????????????????????????????????? | | ?# # """ ??????????????????????????????????? | | ## #? """ ??????????????????????????????????? | +----------------------------------------------------+ Best States ------------- Heat Dissipation 46 Energy Generation 5 Energy Capacity 100 Matter Stores 194 Matter Capacity 300 Sight Range 16 Terrain Scan Density 10 Evasion (%) 50 Item Schematics ----------------- None Robot Schematics ------------------ None Fabricated ------------ Nothing Repaired ---------- Nothing Studied --------- None Alien Tech Used ----------------- None Achievements -------------- Desperate Times \\IAMDERELICT Challenges ------------ None Game ------ Seed PointHackingFragment Manual? 0 Play Time 00:11:52 Cumulative 53.6 hours Start 2025.11.19 @ 13:41:37 End 2025.11.19 @ 13:51:50 Sessions 1 Manual Loads 0 Difficulty Rogue Special Mode None Game No. 63 Rogue 63 Adventurer 0 Explorer 0 Win Type - Total 1 Types 1/0/0/0/0/0/0/0/0/0 Lore% 48 Gallery% 44 Achievement% 34 Wizard Run 0 Options --------- Layout 1 ASCII 0 Keyboard 0 Movement Numpad Keybinds 0 Fullscreen 1 Font 32/SmallcapsGlow Map View 50x35 Zoom Use 0% Tactical HUD 0 Map Filters NONE Filters NONE Steam 1 RUN: c4cd06b2-7d4e-4cc7-8474-bec718ba4ac1